bitfinex-derivatives/quotes_SOLF0:USTF0_20250111
["timestamp","ask_amount","ask_price","bid_price","bid_amount"]
[1736569915869,7.2259428,185.64,185.59,5.6]
[1736569917077,2.6945,185.6,185.59,5.6]
[1736569919776,9.9204428,185.6,185.59,5.6]
[1736569920875,2.6945,185.6,185.59,5.6]
[1736569922176,8.50699685,185.68,185.59,5.6]
[1736569922381,2.694,185.63,185.59,12.8259428]
[1736569923076,2.6941,185.62,185.59,12.8259428]
[1736569924286,7.2259428,185.63,185.59,5.6]
[1736569924684,7.2259428,185.61,185.59,5.6]
[1736569926286,2.6943,185.6,185.59,5.6]
[1736569926886,7.2259428,185.61,185.54,9.72]
[1736569927088,2.695,185.55,185.54,9.72]
[1736569929985,2.6949,185.57,185.54,9.72]
[1736569930187,2.6949,185.57,185.55,7.2259428]
[1736569931697,2.6949,185.57,185.55,14.1859428]
[1736569932490,2.6949,185.56,185.55,14.1859428]
[1736569934389,2.6949,185.56,185.55,6.96]
[1736569939592,7.2259428,185.56,185.44,3.2199]
[1736569939897,7.2259428,185.49,185.44,3.2199]
[1736569940291,9.9219428,185.49,185.44,3.2199]
[1736569940492,7.2259428,185.49,185.42,7.2259428]
[1736569940694,9.9220428,185.48,185.42,2.6968]
[1736569940893,9.9220428,185.48,185.42,17.2227428]
[1736569941289,2.6962,185.47,185.42,17.2227428]
[1736569942191,2.6962,185.47,185.42,7.3]
[1736569942391,2.6964,185.46,185.42,7.3]
[1736569942794,7.2259428,185.48,185.42,7.3]
[1736569942997,7.2259428,185.48,185.42,14.5259428]
[1736569944090,9.9221428,185.48,185.42,17.2228428]
[1736569947198,9.9221428,185.48,185.43,2.6968]
[1736569947998,7.2259428,185.48,185.42,14.5259428]
[1736569948903,7.2259428,185.48,185.42,7.3]
[1736569949099,2.6964,185.46,185.42,7.3]
[1736569949289,7.2259428,185.48,185.42,7.3]
[1736569949700,2.6963,185.47,185.42,7.3]
[1736569950001,7.2259428,185.48,185.42,7.3]
[1736569950701,2.6966,185.45,185.42,7.3]
[1736569952201,7.2259428,185.46,185.42,7.3]
[1736569953497,2.6967,185.44,185.42,7.3]
[1736569953700,7.2259428,185.44,185.42,7.3]
[1736569954205,2.6968,185.43,185.42,7.3]
[1736569955907,7.2259428,185.44,185.42,7.3]
[1736569956303,7.2259428,185.44,185.37,2.6975]
[1736569956605,7.2259428,185.39,185.31,4.7507]
[1736569956799,7.2259428,185.39,185.32,2.6982]
[1736569957006,9.9233428,185.39,185.32,2.6982]
[1736569957201,9.9233428,185.39,185.32,9.9241428]
[1736569957398,9.9233428,185.39,185.32,2.6982]
[1736569957609,2.6974,185.39,185.32,2.6982]
[1736569957805,62.01331877,185.44,185.33,9.9241428]
[1736569958007,7.2259428,185.4,185.33,9.9241428]
[1736569958208,7.2259428,185.4,185.33,7.2259428]
[1736569959003,62.01331877,185.44,185.35,7.2259428]
[1736569959206,7.2259428,185.4,185.35,7.2259428]
[1736569960008,9.9229428,185.42,185.36,2.6978]
[1736569960409,2.697,185.42,185.36,2.6978]
[1736569960605,9.9229428,185.42,185.36,2.6978]
[1736569961310,7.2259428,185.4,185.36,2.6978]
[1736569962214,9.9229428,185.42,185.36,2.6978]
[1736569963815,0.18974,185.49,185.36,2.6978]
[1736569964013,0.18974,185.49,185.39,7.2259428]
[1736569964311,7.2259428,185.45,185.39,7.2259428]
[1736569964514,0.18974,185.49,185.38,7.2259428]
[1736569964719,7.2259428,185.44,185.38,9.9234428]
[1736569966617,2.6968,185.43,185.38,7.2259428]
[1736569966819,2.6968,185.43,185.36,9.9236428]
[1736569968221,2.6968,185.43,185.37,2.6977]
[1736569973527,9.9231428,185.4,185.34,2.6981]
[1736569973925,2.6972,185.4,185.35,7.2259428]
[1736569974425,7.2259428,185.42,185.35,9.9238428]
[1736569974625,2.6971,185.41,185.35,9.9238428]
[1736569975831,2.6972,185.4,185.35,2.6979]
[1736569976227,2.6972,185.4,185.34,9.9240428]
[1736569976432,2.6974,185.39,185.34,7.2259428]
[1736569976923,7.2259428,185.4,185.34,7.2259428]
[1736569977129,2.6975,185.38,185.34,7.2259428]
[1736569978032,2.6974,185.39,185.34,7.2259428]
[1736569978630,2.6978,185.37,185.33,7.2259428]
[1736569979932,2.6978,185.37,185.33,15.6259428]
[1736569980133,2.6978,185.37,185.33,8.4]
[1736569980331,2.6978,185.37,185.33,15.6259428]
[1736569981127,6.94642967,185.49,185.33,15.6259428]
[1736569981328,6.94642967,185.49,185.35,7.2259428]
[1736569981534,7.2259428,185.41,185.35,7.2259428]
[1736569982738,7.2259428,185.41,185.34,7.2259428]
[1736569983431,2.6974,185.39,185.34,7.2259428]
[1736569983627,4.6397,185.5,185.34,7.2259428]
[1736569983924,7.2259428,185.42,185.34,7.2259428]
[1736569984931,7.2259428,185.44,185.36,7.2259428]
[1736569985133,11.5951047,185.5,185.4,7.2259428]
[1736569985336,7.2259428,185.47,185.4,7.2259428]
[1736569985537,9.9222428,185.47,185.4,9.9230428]
[1736569986536,2.6964,185.46,185.4,9.9230428]
[1736569988236,2.6964,185.46,185.4,2.6971]
[1736569988435,2.6965,185.45,185.39,7.2259428]
[1736569989236,7.2259428,185.47,185.37,5.52]
[1736569989436,2.6967,185.44,185.39,7.2259428]
[1736569990229,7.2259428,185.45,185.37,5.52]
[1736569990634,7.2259428,185.45,185.37,12.7459428]
[1736569990832,11.61156147,185.5,185.37,12.7459428]
[1736569990833,7.2259428,185.43,185.37,12.7459428]
[1736569991838,2.697,185.42,185.37,12.7459428]
[1736569992341,2.697,185.42,185.37,7.2259428]
[1736569992537,2.6971,185.41,185.37,7.2259428]
[1736569993142,2.6974,185.39,185.34,3.2678]
[1736569993342,2.6974,185.39,185.33,13.94]
[1736569993543,2.6974,185.39,185.35,7.2259428]
[1736569994344,2.6972,185.4,185.35,7.2259428]
[1736569995037,2.6972,185.4,185.33,8.4]
[1736569995545,2.6972,185.4,185.36,7.2259428]
[1736569998147,2.6972,185.4,185.33,8.4]
[1736569998347,7.2259428,185.4,185.33,8.4]
[1736569998550,7.2259428,185.4,185.34,7.2259428]
[1736569999845,7.2259428,185.4,185.33,8.4]
[1736570000044,7.2259428,185.38,185.33,8.4]
[1736570001749,2.6981,185.34,185.33,8.4]
[1736570011052,2.698,185.35,185.33,8.4]
[1736570011259,7.2259428,185.38,185.33,8.4]
[1736570011452,2.6979,185.36,185.33,8.4]
[1736570012957,7.2259428,185.36,185.33,8.4]
[1736570013456,2.6981,185.34,185.33,8.4]
[1736570013954,7.2259428,185.35,185.33,8.4]
[1736570014149,2.698,185.35,185.33,8.4]
[1736570015357,2.6981,185.34,185.33,8.4]
[1736570030274,2.6989,185.29,185.25,43.35258849]
[1736570031177,7.2259428,185.31,185.24,3.2685]
[1736570031376,1.5293,185.38,185.25,6.86]
[1736570031572,7.2259428,185.32,185.25,6.86]
[1736570032075,2.6988,185.29,185.25,6.86]
[1736570033279,2.699,185.28,185.25,6.86]
[1736570034076,2.6993,185.26,185.25,6.86]
[1736570037276,7.2259428,185.3,185.25,6.86]
[1736570037482,7.2259428,185.28,185.25,6.86]
[1736570037885,2.6991,185.27,185.25,6.86]
[1736570038079,7.2259428,185.3,185.25,6.86]
[1736570038681,2.6991,185.28,185.25,6.86]
[1736570039181,7.2259428,185.3,185.25,6.86]
[1736570040583,2.6992,185.27,185.25,6.86]
[1736570044293,7.2259428,185.26,185.25,6.86]
[1736570044483,2.6993,185.26,185.25,6.86]
[1736570044787,2.6993,185.26,185.23,7.2259428]
[1736570045387,7.2259428,185.28,185.23,7.2259428]
[1736570045688,7.2259428,185.28,185.23,14.8459428]
[1736570046385,2.6992,185.27,185.23,14.8459428]
[1736570046584,8.48398541,185.38,185.25,7.2259428]
[1736570046782,7.2259428,185.32,185.25,7.2259428]
[1736570047185,2.6987,185.3,185.24,3.2487]
[1736570047383,9.9246428,185.3,185.24,10.4746428]
[1736570048381,2.6987,185.3,185.24,10.4746428]
[1736570049787,2.6987,185.3,185.24,3.2487]
[1736570049987,7.2259428,185.3,185.24,10.4746428]
[1736570051887,2.6988,185.29,185.24,10.4746428]
[1736570052690,7.2259428,185.3,185.24,10.4746428]
[1736570052889,2.699,185.28,185.24,10.4746428]
[1736570055090,2.6988,185.29,185.24,10.4746428]
[1736570056291,2.6988,185.29,185.26,7.2259428]
[1736570057295,7.2259428,185.32,185.26,7.2259428]
[1736570057491,2.6987,185.3,185.26,7.2259428]
[1736570057890,7.2259428,185.34,185.26,7.2259428]
[1736570058585,2.699,185.29,185.24,3.2487]
[1736570058791,7.2259428,185.32,185.25,7.2259428]
[1736570058990,7.2259428,185.32,185.23,14.8459428]
[1736570059388,2.6991,185.28,185.23,14.8459428]
[1736570060896,2.6991,185.28,185.25,7.2259428]
[1736570061293,7.2259428,185.32,185.25,7.2259428]
[1736570061890,2.6987,185.3,185.25,7.2259428]
[1736570062289,7.2259428,185.32,185.25,7.2259428]
[1736570063193,2.6989,185.29,185.25,7.2259428]
[1736570064996,6.95468541,185.37,185.27,7.2259428]
[1736570065200,6.95468541,185.37,185.34,7.2259428]
[1736570065497,171.55386679,185.39,185.36,7.2259428]
[1736570066494,2.6972,185.4,185.36,7.2259428]
[1736570067799,2.6971,185.42,185.38,7.2259428]
[1736570070402,7.4176228,185.44,185.38,7.2259428]
[1736570070804,7.4176228,185.44,185.33,3.3065]
[1736570071001,7.4176228,185.44,185.37,7.2259428]
[1736570071703,7.2259428,185.43,185.37,7.2259428]
[1736570073303,0.19168,185.44,185.39,7.2259428]
[1736570076004,8.7525428,185.46,185.39,7.2259428]
[1736570076309,1.5266,185.46,185.39,7.2259428]
[1736570076504,8.7525428,185.46,185.39,7.2259428]
[1736570076909,8.7525428,185.46,185.39,16.2859428]
[1736570077210,2.6971,185.41,185.39,16.2859428]
[1736570079212,2.6972,185.4,185.39,16.2859428]
[1736570081811,2.6967,185.44,185.39,16.2859428]
[1736570082015,1.5266,185.46,185.41,7.2259428]
[1736570083013,2.6966,185.45,185.41,7.2259428]
[1736570083216,7.2259428,185.47,185.41,7.2259428]
[1736570084020,2.6968,185.44,185.41,7.2259428]
[1736570085115,8.7816428,185.49,185.41,7.2259428]
[1736570085317,7.2259428,185.47,185.39,9.06]
[1736570085625,7.2259428,185.47,185.4,7.2259428]
[1736570086418,2.697,185.42,185.4,7.2259428]
[1736570092639,7.2259428,185.44,185.39,9.06]
[1736570093444,2.6972,185.4,185.39,9.06]
[1736570095428,2.6972,185.4,185.39,0.9242]
[1736570095630,2.6972,185.4,185.25,3.1537]
[1736570095631,7.2259428,185.4,185.25,3.1537]
[1736570095939,7.2259428,185.35,185.29,7.2259428]
[1736570096238,2.6985,185.32,185.29,7.2259428]
[1736570096826,2.6985,185.32,185.29,14.0359428]
[1736570103438,2.6983,185.33,185.29,14.0359428]
[1736570104644,2.6987,185.3,185.29,6.81]
[1736570104845,7.2259428,185.35,185.29,14.0359428]
[1736570105244,2.6986,185.31,185.29,6.81]
[1736570105437,1.5554,185.41,185.29,6.81]
[1736570105438,7.2259428,185.33,185.29,6.81]
[1736570105950,2.6986,185.31,185.29,6.81]
[1736570107146,7.2259428,185.33,185.29,6.81]
[1736570107348,2.6987,185.3,185.29,6.81]
[1736570111851,1.5263,185.38,185.29,6.81]
[1736570112056,2.6985,185.31,185.29,6.81]
[1736570113160,2.6987,185.3,185.29,6.81]
[1736570120560,2.6987,185.3,185.29,4.2778]
[1736570120755,7.2259428,185.31,185.21,5.48]
[1736570120963,7.2259428,185.29,185.17,1.6833]
[1736570121164,7.2259428,185.29,185.18,5.48]
[1736570121362,2.6997,185.24,185.23,7.2259428]
[1736570121561,3.2041,185.34,185.23,7.2259428]
[1736570121766,7.2259428,185.3,185.23,7.2259428]
[1736570121967,7.2259428,185.3,185.23,14.4259428]
[1736570123166,2.6993,185.26,185.23,14.4259428]
[1736570123867,2.6996,185.24,185.23,7.2]
[1736570129968,2.6994,185.25,185.23,7.2]
[1736570131366,2.6987,185.3,185.24,7.2259428]
[1736570131568,10.4300428,185.34,185.27,7.2259428]
[1736570132866,7.2259428,185.32,185.23,14.4259428]
[1736570133072,7.2259428,185.3,185.23,14.4259428]
[1736570136175,7.2259428,185.32,185.25,7.2259428]
[1736570137076,2.6992,185.27,185.25,7.2259428]
[1736570137473,7.2259428,185.32,185.25,7.2259428]
[1736570138380,2.6987,185.3,185.25,7.2259428]
[1736570138577,7.2259428,185.32,185.25,7.2259428]
[1736570139574,10.4300428,185.34,185.27,7.2259428]
[1736570141177,2.699,185.28,185.27,7.2259428]
[1736570144278,2.699,185.28,185.27,17.5759428]
[1736570146677,2.6984,185.32,185.27,17.5759428]
[1736570146884,7.2259428,185.34,185.27,17.5759428]
[1736570147576,6.96590794,185.37,185.27,17.5759428]
[1736570147783,2.6988,185.3,185.27,17.5759428]
[1736570148082,2.6988,185.3,185.29,7.2259428]
[1736570148281,6.96590794,185.37,185.29,7.2259428]
[1736570148480,6.96590794,185.37,185.31,7.2259428]
[1736570149281,68.88972916,185.38,185.31,7.2259428]
[1736570149484,2.6984,185.32,185.31,7.2259428]
[1736570150790,2.6983,185.33,185.31,7.2259428]
[1736570155592,0.1946,185.42,185.31,7.2259428]
[1736570155892,0.1946,185.42,185.28,10.3305]
[1736570155893,0.1946,185.42,185.39,7.2259428]
[1736570156291,2.6972,185.4,185.39,7.2259428]
[1736570157196,0.1946,185.42,185.39,7.2259428]
[1736570157393,0.1946,185.42,185.41,7.2259428]
[1736570157790,8.8440428,185.49,185.41,7.2259428]
[1736570157992,7.2259428,185.49,185.36,7.1191]
[1736570158298,7.2259428,185.49,185.42,7.2259428]
[1736570158598,2.6967,185.44,185.42,7.2259428]
[1736570160099,10.4951428,185.51,185.42,7.2259428]
[1736570160399,10.4951428,185.51,185.45,7.2259428]
[1736570160597,2.6959,185.5,185.45,7.2259428]
[1736570160898,6.30352055,185.52,185.47,7.2259428]
[1736570162102,3.1135,185.58,185.49,7.2259428]
[1736570162493,2.6958,185.5,185.44,12.947]
[1736570162799,7.2259428,185.52,185.44,15.9313428]
[1736570163898,7.2259428,185.52,185.46,7.2259428]
[1736570165102,2.6963,185.47,185.46,7.2259428]
[1736570165404,2.6963,185.47,185.46,14.4259428]
[1736570167409,2.6961,185.48,185.46,14.4259428]
[1736570168403,2.6962,185.47,185.46,14.4259428]
[1736570169405,2.696,185.49,185.46,14.4259428]
[1736570169903,2.696,185.49,185.48,7.2259428]
[1736570170300,7.2259428,185.55,185.48,7.2259428]
[1736570170508,2.6958,185.5,185.48,7.2259428]
[1736570170706,7.2259428,185.57,185.48,7.2259428]
[1736570171008,2.6955,185.52,185.51,7.2259428]
[1736570175613,2.6959,185.49,185.46,7.2]
[1736570176909,7.2259428,185.53,185.46,7.2]
[1736570177107,2.6962,185.47,185.46,7.2]
[1736570178905,2.6972,185.41,185.38,5.46]
[1736570179116,2.6972,185.41,185.4,7.2259428]
[1736570180520,2.6972,185.4,185.39,7.18]
[1736570201343,7.2259428,185.48,185.39,14.4059428]
[1736570201538,7.2259428,185.48,185.41,7.2259428]
[1736570202134,2.6969,185.42,185.41,7.2259428]
[1736570202339,3.2544,185.51,185.39,7.18]
[1736570202639,7.2259428,185.46,185.39,14.4059428]
[1736570204241,2.6972,185.4,185.39,14.4059428]
[1736570206348,2.6972,185.4,185.39,7.18]
[1736570210652,2.6981,185.34,185.33,5.46]
[1736570210854,2.6981,185.34,185.33,12.6859428]
[1736570212558,2.6981,185.34,185.33,7.2259428]
[1736570212951,7.2259428,185.42,185.33,7.2259428]
[1736570213258,2.698,185.35,185.32,5.68]
[1736570215764,0.19168,185.44,185.34,7.2259428]
[1736570215952,0.19168,185.44,185.4,7.2259428]
[1736570216153,0.19168,185.44,185.42,7.2259428]
[1736570217159,2.6968,185.43,185.42,7.2259428]
[1736570220367,2.6974,185.39,185.32,5.68]
[1736570220664,2.6974,185.39,185.38,7.2259428]
[1736570221368,2.6972,185.4,185.38,7.2259428]
[1736570221566,2.6972,185.4,185.39,7.2259428]
[1736570221859,2.6975,185.38,185.32,5.68]
[1736570222065,2.6975,185.38,185.37,7.2259428]
[1736570223763,2.698,185.35,185.32,5.68]
[1736570223973,2.698,185.35,185.34,7.2259428]
[1736570224158,2.698,185.35,185.32,0.24]
[1736570224159,2.698,185.35,185.32,5.7]
[1736570224358,2.698,185.35,185.34,7.2259428]
[1736570226064,2.6982,185.34,185.32,5.46]
[1736570226363,2.6982,185.34,185.33,7.2259428]
[1736570226562,2.6986,185.31,185.29,4.7581]
[1736570226762,2.6986,185.31,185.3,7.2259428]
[1736570231278,7.2259428,185.39,185.3,7.2259428]
[1736570231476,7.2259428,185.39,185.33,7.2259428]
[1736570232477,2.6981,185.34,185.33,7.2259428]
[1736570235479,2.6983,185.33,185.31,7.2259428]
[1736570240289,2.6983,185.33,185.31,7.4359428]
[1736570241082,4.7623,185.43,185.22,4.8192]
[1736570241083,5.44,185.4,185.22,4.8192]
[1736570241284,7.2259428,185.28,185.22,4.8192]
[1736570241683,7.2259428,185.28,185.22,10.2792]
[1736570243191,2.6994,185.26,185.22,10.2792]
[1736570245689,2.6994,185.26,185.22,4.8192]
[1736570245889,2.6994,185.25,185.22,4.8192]
[1736570250188,2.6994,185.25,185.23,7.2259428]
[1736570250391,7.2259428,185.3,185.2,8.16]
[1736570250590,7.2259428,185.3,185.22,7.2259428]
[1736570251091,2.6996,185.24,185.22,7.2259428]
[1736570252990,2.6997,185.23,185.21,5.44]
[1736570253187,2.6997,185.23,185.21,7.2259428]
[1736570255596,2.6998,185.22,185.21,7.2259428]
[1736570256395,7.2259428,185.28,185.21,7.2259428]
[1736570256593,7.2259428,185.3,185.23,7.2259428]
[1736570257188,2.6992,185.27,185.23,7.2259428]
[1736570260403,2.6995,185.25,185.19,2.7002]
[1736570260699,2.6995,185.25,185.21,7.2259428]
[1736570260899,2.6996,185.24,185.21,7.2259428]
[1736570269804,7.2259428,185.3,185.23,7.2259428]
[1736570270105,2.6994,185.25,185.23,7.2259428]
[1736570271004,2.6991,185.28,185.23,7.2259428]
[1736570271300,1.5452,185.32,185.26,7.2259428]
[1736570271507,7.4283228,185.34,185.28,7.2259428]
[1736570271901,2.6988,185.3,185.28,7.2259428]
[1736570280114,2.6988,185.3,185.26,5.44]
[1736570280312,2.699,185.28,185.26,5.44]
[1736570280513,2.699,185.28,185.27,7.2259428]
[1736570280815,7.2259428,185.32,185.25,7.2259428]
[1736570282113,2.6994,185.26,185.25,7.2259428]
[1736570282318,7.2259428,185.3,185.21,5.44]
[1736570282618,7.2259428,185.3,185.24,7.2259428]
[1736570283419,2.6994,185.25,185.24,7.2259428]
[1736570285519,1.6442,185.31,185.24,7.2259428]
[1736570285715,2.6993,185.27,185.26,7.2259428]
[1736570290724,2.699,185.28,185.26,7.2259428]
[1736570291113,0.20238,185.34,185.26,7.2259428]
[1736570291312,0.20238,185.34,185.29,7.2259428]
[1736570291625,7.4283228,185.34,185.28,7.2259428]
[1736570293114,2.6988,185.29,185.28,7.2259428]
[1736570293514,0.20238,185.34,185.28,7.2259428]
[1736570293728,2.6984,185.32,185.31,7.2259428]
[1736570296326,2.6983,185.33,185.31,7.2259428]
[1736570296525,0.20238,185.34,185.31,7.2259428]
[1736570297932,2.6987,185.31,185.28,5.44]
[1736570298228,7.4283228,185.34,185.28,7.2259428]
[1736570299226,2.6989,185.29,185.28,7.2259428]
[1736570301629,0.20238,185.34,185.28,7.2259428]
[1736570301829,0.20238,185.34,185.3,7.2259428]
[1736570302034,0.20238,185.34,185.32,7.2259428]
[1736570302324,2.90058,185.34,185.32,7.2259428]
[1736570303131,2.6982,185.33,185.32,7.2259428]
[1736570303830,0.20238,185.34,185.32,7.2259428]
[1736570304032,0.20238,185.34,185.32,9.9242428]
[1736570305226,2.6972,185.41,185.32,10.4772428]
[1736570305533,2.6972,185.41,185.37,7.2259428]
[1736570305731,8.9026428,185.44,185.37,7.2259428]
[1736570305930,7.2259428,185.42,185.37,7.2259428]
[1736570306933,7.2259428,185.42,185.35,7.2259428]
[1736570307134,7.2259428,185.4,185.31,5.44]
[1736570307435,2.6975,185.38,185.33,7.2259428]
[1736570307629,7.2259428,185.4,185.33,7.2259428]
[1736570308528,2.698,185.35,185.33,7.2259428]
[1736570310433,7.2259428,185.4,185.33,7.2259428]
[1736570310828,7.2259428,185.4,185.35,7.2259428]
[1736570312031,7.2259428,185.39,185.33,7.2259428]
[1736570313132,2.6981,185.35,185.33,7.2259428]
[1736570314134,2.6982,185.34,185.28,2.6989]
[1736570314333,7.2259428,185.37,185.3,7.2259428]
[1736570314730,2.6985,185.31,185.3,7.2259428]
[1736570315631,2.6984,185.33,185.3,7.2259428]
[1736570316431,2.6985,185.31,185.3,7.2259428]
[1736570316627,7.2259428,185.35,185.28,7.2259428]
[1736570317538,2.6989,185.29,185.28,7.2259428]
[1736570321633,1.6203,185.4,185.28,7.2259428]
[1736570321838,2.6985,185.32,185.3,7.2259428]
[1736570322532,2.6985,185.31,185.3,7.2259428]
[1736570325742,7.2259428,185.37,185.3,7.2259428]
[1736570325944,2.6984,185.32,185.27,2.6991]
[1736570328341,2.6984,185.32,185.31,7.2259428]
[1736570328845,7.2259428,185.37,185.31,7.2259428]
[1736570329346,2.6982,185.34,185.31,7.2259428]
[1736570329547,1.6203,185.4,185.33,7.2259428]
[1736570329846,1.5205,185.41,185.37,7.2259428]
[1736570330452,6.08049859,185.43,185.37,7.2259428]
[1736570330953,6.08049859,185.43,185.39,7.2259428]
[1736570332049,2.6972,185.4,185.39,7.2259428]
[1736570333353,6.98852296,185.46,185.39,7.2259428]
[1736570333655,2.6968,185.43,185.41,7.2259428]
[1736570334457,3.1503,185.47,185.41,7.2259428]
[1736570335351,2.6965,185.46,185.41,7.2259428]
[1736570335555,3.1503,185.47,185.41,7.2259428]
[1736570336259,2.6969,185.43,185.41,7.2259428]
[1736570337261,2.6969,185.42,185.41,7.2259428]
[1736570342561,8.8248428,185.47,185.4,7.2259428]
[1736570342754,7.2259428,185.45,185.4,7.2259428]
[1736570342957,2.6971,185.41,185.4,7.2259428]
[1736570343962,2.6975,185.39,185.38,7.2259428]
[1736570345365,2.6977,185.37,185.33,4.8799]
[1736570345566,2.6977,185.37,185.36,7.2259428]
[1736570347065,7.2259428,185.45,185.36,7.2259428]
[1736570347267,7.2259428,185.45,185.38,7.2259428]
[1736570347664,2.6972,185.41,185.4,7.2259428]
[1736570347867,8.56729178,185.5,185.4,7.2259428]
[1736570348063,8.56729178,185.5,185.45,7.2259428]
[1736570348766,2.6964,185.46,185.45,7.2259428]
[1736570357272,1.5774,185.5,185.34,5.54]
[1736570357572,7.2259428,185.47,185.41,7.2259428]
[1736570358474,7.2259428,185.49,185.41,7.2259428]
[1736570359075,2.697,185.42,185.41,7.2259428]
[1736570360770,7.2259428,185.47,185.38,5.54]
[1736570360974,7.2259428,185.47,185.4,7.2259428]
[1736570361175,7.2259428,185.45,185.4,7.2259428]
[1736570362178,2.6971,185.41,185.4,7.2259428]
[1736570366471,2.6969,185.43,185.4,7.2259428]
[1736570366677,2.6969,185.43,185.42,7.2259428]
[1736570367585,2.6963,185.47,185.42,7.2259428]
[1736570367782,2.6963,185.47,185.46,7.2259428]
[1736570372291,2.6961,185.48,185.46,7.2259428]
[1736570372490,2.6961,185.48,185.47,7.2259428]
[1736570387515,2.6959,185.49,185.47,7.2259428]
[1736570387714,2.6959,185.49,185.48,7.2259428]
[1736570389713,8.57689114,185.57,185.48,7.2259428]
[1736570389714,2.6958,185.5,185.48,7.2259428]
[1736570389912,2.6958,185.5,185.49,7.2259428]
[1736570390609,2.696,185.49,185.44,7.496]
[1736570390806,2.696,185.49,185.48,7.2259428]
[1736570394210,2.6958,185.51,185.48,7.2259428]
[1736570394410,2.6958,185.51,185.5,7.2259428]
[1736570398916,7.2259428,185.55,185.44,4.7994]
[1736570399113,7.2259428,185.53,185.47,7.2259428]
[1736570399709,2.6965,185.46,185.45,7.2259428]
[1736570400315,7.2259428,185.49,185.43,7.2259428]
[1736570400518,7.2259428,185.47,185.41,7.2259428]
[1736570400709,2.6972,185.4,185.39,7.2259428]
[1736570411731,2.6969,185.42,185.39,7.2259428]
[1736570411922,2.6969,185.42,185.41,7.2259428]
[1736570421338,1.5898,185.48,185.41,7.2259428]
[1736570421640,1.5898,185.48,185.44,7.2259428]
[1736570423141,2.6965,185.45,185.44,7.2259428]
[1736570437753,2.6972,185.4,185.37,5.5]
[1736570438053,2.6972,185.4,185.39,7.2259428]
[1736570440460,2.6976,185.38,185.34,36.11317757]
[1736570440663,7.2259428,185.42,185.36,7.2259428]
[1736570441166,7.2259428,185.42,185.3,4.7648]
[1736570441467,7.2259428,185.4,185.33,7.2259428]
[1736570442464,2.6983,185.33,185.31,5.46]
[1736570445061,2.6983,185.33,185.32,7.2259428]
[1736570453468,7.2259428,185.38,185.3,7.2259428]
[1736570453770,2.6986,185.31,185.3,7.2259428]
[1736570466988,1.6608,185.37,185.3,7.2259428]
[1736570467183,2.698,185.35,185.27,5.46]
[1736570467385,1.6815,185.4,185.27,5.46]
[1736570468485,1.6815,185.4,185.35,7.2259428]
[1736570469686,2.6978,185.36,185.35,7.2259428]
[1736570483098,2.6985,185.32,185.27,2.699]
[1736570483300,2.6985,185.32,185.31,7.2259428]
[1736570491110,7.2259428,185.38,185.31,7.2259428]
[1736570491310,2.6983,185.33,185.31,7.2259428]
[1736570492608,2.6983,185.33,185.29,5.44]
[1736570492810,2.6983,185.33,185.32,7.2259428]
[1736570513829,1.5197,185.38,185.32,7.2259428]
[1736570514034,1.6815,185.4,185.34,7.2259428]
[1736570514732,6.99260338,185.41,185.38,7.2259428]
[1736570514933,6.99260338,185.41,185.4,7.2259428]
[1736570515229,2.6972,185.41,185.4,7.2259428]
[1736570518826,7.2259428,185.44,185.36,5.42]
[1736570519026,2.6975,185.38,185.37,7.2259428]
[1736570519332,2.6975,185.38,185.31,5.42]
[1736570519530,2.6975,185.38,185.35,7.2259428]
[1736570520533,7.2259428,185.42,185.31,5.42]
[1736570520831,2.6977,185.37,185.35,7.2259428]
[1736570522428,2.6977,185.37,185.31,8.1185]
[1736570522632,2.6977,185.37,185.36,7.2259428]
[1736570529531,2.6975,185.39,185.36,7.2259428]
[1736570529930,2.6975,185.39,185.38,7.2259428]
[1736570531537,1.6578,185.45,185.38,7.2259428]
[1736570531836,2.6969,185.43,185.41,7.2259428]
[1736570532533,2.6966,185.45,185.41,7.2259428]
[1736570532835,2.6966,185.45,185.44,7.2259428]
[1736570536933,62.67926814,185.47,185.44,7.2259428]
[1736570537139,2.6964,185.46,185.44,7.2259428]
[1736570537941,2.6967,185.44,185.42,7.2259428]